bitfinex/quotes_BTCUSD_20250709
["timestamp","ask_amount","ask_price","bid_price","bid_amount"]
[1752069192336,0.01826717,109480.0,109470.0,0.3393699]
[1752069192546,0.00913267,109490.0,109480.0,0.20094951]
[1752069192757,0.21919691,109490.0,109480.0,0.27238351]
[1752069192966,0.02739858,109490.0,109480.0,0.27238351]
[1752069193171,0.02739858,109490.0,109480.0,0.28151718]
[1752069193373,0.03653175,109490.0,109480.0,0.28151718]
[1752069193577,0.21919683,109490.0,109480.0,0.26324968]
[1752069194005,0.21919683,109490.0,109480.0,0.27238351]
[1752069194417,0.21919683,109490.0,109480.0,0.26324968]
[1752069194622,0.02739858,109490.0,109480.0,0.27238335]
[1752069194819,0.03653183,109490.0,109480.0,0.31346019]
[1752069195021,0.21006416,109490.0,109480.0,0.31346035]
[1752069195223,0.20093133,109490.0,109480.0,0.27238351]
[1752069195423,0.20093133,109490.0,109480.0,0.31546035]
[1752069195631,0.20093133,109490.0,109480.0,0.30632652]
[1752069195829,0.20093133,109490.0,109480.0,0.3265941]
[1752069196056,0.19179833,109490.0,109480.0,0.24898176]
[1752069196403,0.19179833,109490.0,109480.0,0.28551743]
[1752069196608,0.20093133,109490.0,109480.0,0.29465117]
[1752069196827,0.02739883,109490.0,109480.0,0.33572743]
[1752069197079,0.036532,109490.0,109480.0,0.33572743]
[1752069197252,0.0091325,109490.0,109480.0,0.77600868]
[1752069197491,0.35796588,109500.0,109490.0,0.25719816]
[1752069197704,0.35796588,109500.0,109490.0,0.25719833]
[1752069197920,0.00913183,109500.0,109490.0,0.57705783]
[1752069198143,0.01826408,109500.0,109490.0,0.28469658]
[1752069198351,0.0273959,109500.0,109490.0,0.28469658]
[1752069198567,0.0273959,109500.0,109490.0,0.28469675]
[1752069198783,0.04566057,109500.0,109490.0,0.26643133]
[1752069198992,0.02739632,109500.0,109490.0,0.28469709]
[1752069199421,0.02739573,109500.0,109490.0,0.28469709]
[1752069199591,0.03652798,109500.0,109490.0,0.28469709]
[1752069200012,0.22830871,109500.0,109490.0,0.42364442]
[1752069200226,0.21004514,109500.0,109490.0,0.42364458]
[1752069200453,0.21004514,109500.0,109490.0,0.24816508]
[1752069200733,0.20091298,109500.0,109490.0,0.0695]
[1752069200984,0.20091298,109500.0,109490.0,0.25216508]
[1752069201178,0.20091298,109500.0,109490.0,0.0695]
[1752069202138,0.20091298,109500.0,109490.0,0.11057684]
[1752069202565,0.20091298,109500.0,109490.0,0.29324192]
[1752069202772,0.20091298,109500.0,109490.0,0.31150817]
[1752069202983,0.16618458,109500.0,109490.0,0.32977367]
[1752069203215,0.16618425,109500.0,109490.0,0.32977367]
[1752069203440,0.175276,109500.0,109490.0,0.32977367]
[1752069204110,0.16614375,109500.0,109490.0,0.3843614]
[1752069204370,0.16610375,109500.0,109490.0,0.3843614]
[1752069204860,0.175236,109500.0,109490.0,0.3843614]
[1752069205108,0.00913175,109500.0,109490.0,0.67672265]
[1752069205360,0.21915688,109510.0,109500.0,0.28327689]
[1752069205595,0.21915688,109510.0,109500.0,0.70517406]
[1752069205792,0.21002588,109510.0,109500.0,0.44475749]
[1752069206099,0.21002588,109510.0,109500.0,0.45388965]
[1752069206777,0.02739399,109510.0,109500.0,0.47215356]
[1752069206995,0.21002596,109510.0,109500.0,0.44475749]
[1752069207226,0.20089463,109510.0,109500.0,0.44475749]
[1752069207667,0.20089463,109510.0,109500.0,0.46302173]
[1752069207886,0.19174554,109520.0,109500.0,0.40805323]
[1752069208106,0.68873635,109520.0,109510.0,0.24643172]
[1752069208282,0.68873635,109520.0,109510.0,0.0638]
[1752069208609,0.69775593,109520.0,109510.0,0.0638]
[1752069208829,0.68873635,109520.0,109510.0,0.0638]
[1752069209321,0.69073635,109520.0,109510.0,0.0638]
[1752069209758,0.68973635,109520.0,109510.0,0.0638]
[1752069210187,0.69173635,109520.0,109510.0,0.0638]
[1752069211016,0.7010123,109520.0,109510.0,0.0638]
[1752069212891,0.2100444,109500.0,109490.0,0.38803275]
[1752069213060,0.2100444,109500.0,109490.0,0.53563283]
[1752069213302,0.2100444,109500.0,109490.0,0.42592965]
[1752069213303,0.19178065,109500.0,109490.0,0.42592965]
[1752069213508,0.19178065,109500.0,109490.0,0.49856282]
[1752069214052,0.01826425,109500.0,109490.0,0.51682857]
[1752069214258,0.20089648,109510.0,109500.0,0.26361298]
[1752069214462,0.20089648,109510.0,109500.0,0.26361307]
[1752069214686,0.20089648,109510.0,109500.0,0.27274489]
[1752069214687,0.01826225,109510.0,109500.0,0.27274489]
[1752069214907,0.01826216,109510.0,109500.0,0.57423797]
[1752069215123,0.02739349,109510.0,109500.0,0.61531481]
[1752069215776,0.02739349,109510.0,109500.0,0.32295356]
[1752069216194,0.02739349,109510.0,109500.0,0.32495356]
[1752069217490,0.02739349,109510.0,109500.0,0.31582173]
[1752069217702,0.01826216,109510.0,109500.0,0.32495356]
[1752069218134,0.02753138,109520.0,109510.0,0.26669446]
[1752069218343,0.02753138,109520.0,109510.0,0.2849567]
[1752069218344,0.02753072,109520.0,109510.0,0.2849567]
[1752069218566,0.17481072,109520.0,109510.0,0.4413677]
[1752069218780,0.16568031,109520.0,109510.0,0.4413677]
[1752069218996,0.00014006,109520.0,109510.0,0.86624272]
[1752069219206,0.00014006,109520.0,109510.0,0.92083045]
[1752069219383,0.00014006,109520.0,109510.0,1.02079383]
[1752069220286,0.00014006,109520.0,109510.0,1.06159859]
[1752069221375,0.00014006,109520.0,109510.0,1.00701086]
[1752069221594,0.00014006,109520.0,109510.0,1.06666269]
[1752069221808,0.00114006,109520.0,109510.0,0.98778109]
[1752069222689,0.01027006,109520.0,109510.0,0.98778109]
[1752069223107,0.00114006,109520.0,109510.0,0.98778109]
[1752069223322,0.02853047,109520.0,109510.0,0.52987776]
[1752069223574,0.03766088,109520.0,109510.0,0.66778661]
[1752069223815,0.04679154,109520.0,109510.0,0.64952386]
[1752069224019,0.21114692,109520.0,109510.0,0.37537521]
[1752069224242,0.20201651,109520.0,109510.0,0.30961521]
[1752069224654,0.20201651,109520.0,109510.0,0.34111521]
[1752069225080,0.20201651,109520.0,109510.0,0.32744733]
[1752069225284,0.20201651,109520.0,109510.0,0.31656338]
[1752069226114,0.34897651,109520.0,109510.0,0.10796338]
[1752069227101,0.37997651,109520.0,109510.0,0.10796338]
[1752069227467,0.37997651,109520.0,109510.0,0.008]
[1752069227468,0.34897651,109520.0,109510.0,0.008]
[1752069228202,0.88118842,109520.0,109510.0,0.003]
[1752069228412,0.59716313,109510.0,109500.0,0.04098395]
[1752069228624,0.98096131,109510.0,109500.0,0.04098395]
[1752069229089,0.19178065,109500.0,109490.0,0.09563578]
[1752069229228,0.18266508,109490.0,109480.0,0.49659064]
[1752069229418,0.20093116,109490.0,109480.0,0.45904785]
[1752069229622,0.02739883,109490.0,109480.0,0.46818185]
[1752069229882,0.02739883,109490.0,109480.0,0.4773156]
[1752069230073,0.02739883,109490.0,109480.0,0.46818185]
[1752069230278,0.02739883,109490.0,109480.0,0.47731552]
[1752069230452,0.01826525,109490.0,109480.0,0.48644902]
[1752069230799,0.02739817,109490.0,109480.0,0.48644902]
[1752069231007,0.01826525,109490.0,109480.0,0.48644902]
[1752069231280,0.02739825,109490.0,109480.0,0.4699218]
[1752069231490,0.0091325,109490.0,109480.0,0.4699218]
[1752069231694,0.01826517,109490.0,109480.0,0.4699218]
[1752069231908,0.04666409,109490.0,109480.0,0.47392188]
[1752069232118,0.01926517,109490.0,109480.0,0.44652055]
[1752069232328,0.22019675,109490.0,109480.0,0.45565447]
[1752069232995,0.22019675,109490.0,109480.0,0.46065447]
[1752069233220,0.22019675,109490.0,109480.0,0.46978822]
[1752069233876,0.03753167,109490.0,109480.0,0.46978822]
[1752069234092,0.03753159,109490.0,109480.0,0.47892189]
[1752069234301,0.03753133,109490.0,109480.0,0.46065422]
[1752069234720,0.02839825,109490.0,109480.0,0.46978789]
[1752069234922,0.03753133,109490.0,109480.0,0.46978789]
[1752069235171,0.03753125,109490.0,109480.0,0.46978789]
[1752069235372,0.04666433,109490.0,109480.0,0.46978789]
[1752069235582,0.01926542,109490.0,109480.0,0.47892105]
[1752069235789,0.02839834,109490.0,109480.0,0.47892105]
[1752069236005,0.01926542,109490.0,109480.0,0.47892105]
[1752069236241,0.02839834,109490.0,109480.0,0.47892105]
[1752069236459,0.03753142,109490.0,109480.0,0.4515203]
[1752069236879,0.02839834,109490.0,109480.0,0.4515203]
[1752069237088,0.02839834,109490.0,109480.0,0.46065388]
[1752069237309,0.02839834,109490.0,109480.0,0.4515203]
[1752069237539,0.03753142,109490.0,109480.0,0.46065397]
[1752069237753,0.02839834,109490.0,109480.0,0.46978755]
[1752069237979,0.03753142,109490.0,109480.0,0.46065397]
[1752069238191,0.03753142,109490.0,109480.0,0.39686847]
[1752069238633,0.20193099,109490.0,109480.0,0.52492089]
[1752069238894,0.22509816,109490.0,109480.0,0.14994733]
[1752069239082,0.2782241,109490.0,109480.0,0.009]
[1752069239344,0.3093241,109490.0,109480.0,0.009]
[1752069239768,0.25519816,109490.0,109480.0,0.005]
[1752069240391,0.19179816,109490.0,109480.0,0.18768176]
[1752069240602,0.19179816,109490.0,109480.0,0.19681576]
[1752069240812,0.19179816,109490.0,109480.0,0.22941584]
[1752069241015,0.19179816,109490.0,109480.0,0.22028176]
[1752069241223,0.19179816,109490.0,109480.0,0.21528176]
[1752069241652,0.19279816,109490.0,109480.0,0.21528176]
[1752069241859,0.18266508,109490.0,109480.0,0.0326]
[1752069242039,0.18266508,109490.0,109470.0,0.46244091]
[1752069242241,0.02740133,109480.0,109470.0,0.45330649]
[1752069242457,0.03653508,109480.0,109470.0,0.45330649]
[1752069242672,0.03653516,109480.0,109470.0,0.45330649]
[1752069242879,0.02740116,109480.0,109470.0,0.46244091]
[1752069243297,0.21921684,109480.0,109470.0,0.44417199]
[1752069243520,0.21008326,109480.0,109470.0,0.45330666]
[1752069243731,0.21008326,109480.0,109470.0,0.44417207]
[1752069243962,0.21008326,109480.0,109470.0,0.45330674]
[1752069244182,0.20094951,109480.0,109470.0,0.07510515]
[1752069244415,0.34694951,109480.0,109470.0,0.0025212]
[1752069244839,0.34694951,109480.0,109470.0,0.0015212]
[1752069245044,0.34694951,109480.0,109470.0,0.0045212]
[1752069245679,0.34694951,109480.0,109470.0,0.18721965]
[1752069246231,0.33781568,109480.0,109470.0,0.18721965]
[1752069247454,0.33881568,109480.0,109470.0,0.19021965]
[1752069248465,0.19281568,109480.0,109470.0,0.19021965]
[1752069248877,0.19281568,109480.0,109470.0,0.29195831]
[1752069248878,0.001,109480.0,109470.0,0.29195831]
[1752069249085,0.02840058,109480.0,109470.0,0.29195831]
[1752069249308,0.20194943,109480.0,109470.0,0.0400212]
[1752069249506,0.20194943,109480.0,109470.0,0.19021965]
[1752069249714,0.20194943,109480.0,109470.0,0.0075212]
[1752069250527,0.23304943,109480.0,109470.0,0.0075212]
[1752069251089,0.66932015,109480.0,109470.0,0.0075212]
[1752069251452,0.58393648,109480.0,109470.0,0.0075212]
[1752069251894,0.20194943,109480.0,109470.0,0.19021965]
[1752069252071,0.20194943,109480.0,109470.0,0.0075212]
[1752069252505,0.23454943,109480.0,109470.0,0.0075212]
[1752069253672,0.20194943,109480.0,109470.0,0.0075212]
[1752069254836,0.61463648,109480.0,109470.0,0.0075212]
[1752069255043,0.68041997,109480.0,109470.0,0.0075212]
[1752069255272,0.7718569,109480.0,109470.0,0.0075212]
[1752069256325,0.9175369,109480.0,109470.0,0.0075212]
[1752069256743,0.56664985,109480.0,109470.0,0.0075212]
[1752069256950,0.9175369,109480.0,109470.0,0.0075212]
[1752069258272,0.56664985,109480.0,109470.0,0.0075212]
[1752069258568,0.9175369,109480.0,109470.0,0.0075212]
[1752069259929,0.50484985,109480.0,109470.0,0.0075212]
[1752069260147,0.78995341,109480.0,109470.0,0.0075212]
[1752069260372,0.20194943,109480.0,109470.0,0.25201965]
[1752069260590,0.20194943,109480.0,109470.0,0.27028906]
[1752069260817,0.02840167,109480.0,109470.0,0.27942348]
[1752069261028,0.34754968,109480.0,109470.0,0.25201965]
[1752069261236,0.34754968,109480.0,109470.0,0.0693212]
[1752069261714,0.34754968,109480.0,109470.0,0.27028907]
[1752069261915,0.34754968,109480.0,109470.0,0.29298191]
[1752069262126,0.33841576,109480.0,109470.0,0.26115457]
[1752069262337,0.33841576,109480.0,109470.0,0.2702894]
[1752069262537,0.33841576,109480.0,109470.0,0.25201965]
[1752069263207,0.0101335,109480.0,109470.0,0.27942339]
[1752069263432,0.37495067,109480.0,109470.0,0.63031061]
[1752069263676,0.36581717,109480.0,109470.0,0.27028923]
[1752069263903,0.35668359,109480.0,109470.0,0.31125149]
[1752069264546,0.35668359,109480.0,109470.0,0.27028915]
[1752069264752,0.35668359,109480.0,109470.0,0.31125141]
[1752069264963,0.34754976,109480.0,109470.0,0.31125141]
[1752069265373,0.33841584,109480.0,109470.0,0.31125141]
[1752069265596,0.32928176,109480.0,109470.0,0.30221757]
[1752069265803,0.32928176,109480.0,109470.0,0.29308274]
[1752069266006,0.32928176,109480.0,109470.0,0.30221749]
[1752069266417,0.33841568,109480.0,109470.0,0.32048658]
[1752069266628,0.17400159,109480.0,109470.0,0.32962091]
[1752069266842,0.36581677,109480.0,109470.0,0.68050796]
[1752069267040,0.18313501,109480.0,109470.0,0.68050796]
[1752069267257,0.36581677,109480.0,109470.0,0.67137379]
[1752069267727,0.36581677,109480.0,109470.0,0.32048674]
[1752069267936,0.35668335,109480.0,109470.0,0.32048674]
[1752069268122,0.35668335,109480.0,109470.0,0.32962124]
[1752069268332,0.35668335,109480.0,109470.0,0.33875566]
[1752069268837,0.35668335,109480.0,109470.0,0.33875524]
[1752069269042,0.36581743,109480.0,109470.0,0.32962091]
[1752069269278,0.36581743,109480.0,109470.0,0.92667922]
[1752069269279,0.001,109480.0,109470.0,0.92667922]
[1752069269496,0.001,109480.0,109470.0,0.94026796]
[1752069270042,0.001,109480.0,109470.0,0.95738828]
[1752069270255,0.0101335,109480.0,109470.0,0.95738828]
[1752069270502,0.01926691,109480.0,109470.0,0.95738828]
[1752069270709,0.01013333,109480.0,109470.0,0.95738828]
[1752069271127,0.001,109480.0,109470.0,0.95738828]
[1752069271331,0.001,109480.0,109470.0,0.46090123]
[1752069271546,0.21108325,109480.0,109470.0,0.33308248]
[1752069271774,0.21108325,109480.0,109470.0,0.15038403]
[1752069271983,0.20194967,109480.0,109470.0,0.26598517]
[1752069272162,0.55283672,109480.0,109470.0,0.26598517]
[1752069272396,0.20194967,109480.0,109470.0,0.26598517]
[1752069272607,0.34754967,109480.0,109470.0,0.09593334]
[1752069273029,0.34754967,109480.0,109470.0,0.27863179]
[1752069273234,0.34754967,109480.0,109470.0,0.09593334]
[1752069274081,0.69843672,109480.0,109470.0,0.06573334]
[1752069274286,0.76463672,109480.0,109470.0,0.06573334]
[1752069274715,0.76463672,109480.0,109470.0,0.04861188]
[1752069274924,0.76463672,109480.0,109470.0,0.06573705]
[1752069275550,0.41374967,109480.0,109470.0,0.06573705]
[1752069275774,0.73143672,109480.0,109470.0,0.06573705]
[1752069276197,0.73143672,109480.0,109470.0,0.02464637]
[1752069276632,0.69843672,109480.0,109470.0,0.02464637]
[1752069277045,0.69843672,109480.0,109470.0,0.06573705]
[1752069277261,0.69843672,109480.0,109470.0,0.02464637]
[1752069277464,0.69843672,109480.0,109470.0,0.06573705]
[1752069277669,0.69843672,109480.0,109470.0,0.02464637]
[1752069278527,0.20194967,109480.0,109470.0,0.25757042]
[1752069278724,0.01926741,109480.0,109470.0,0.69012664]
[1752069278969,0.01926741,109480.0,109470.0,0.7539128]
[1752069279408,0.02840058,109480.0,109470.0,0.7539128]
[1752069279616,0.0375345,109480.0,109470.0,0.7539128]
[1752069279833,0.22935026,109480.0,109470.0,0.40302584]
[1752069280050,0.22935101,109480.0,109470.0,0.40302584]
[1752069280264,0.22021751,109480.0,109470.0,0.84928779]
[1752069280484,0.21108376,109480.0,109470.0,0.48127581]
[1752069280687,0.21108376,109480.0,109470.0,0.48927024]
[1752069280912,0.21108376,109480.0,109470.0,0.50753966]
[1752069281510,0.21108376,109480.0,109470.0,0.51667424]
[1752069281720,0.21108376,109480.0,109470.0,0.51667382]
[1752069281967,0.21108376,109480.0,109470.0,0.51663382]
[1752069282166,0.01926792,109480.0,109470.0,0.51663299]
[1752069282929,0.20194968,109480.0,109470.0,0.28026769]
[1752069283127,0.20194968,109480.0,109470.0,0.33583302]
[1752069283359,0.18368176,109480.0,109470.0,0.31346785]
[1752069283565,0.18368176,109480.0,109470.0,0.25805965]
[1752069284446,0.53456881,109480.0,109470.0,0.12039476]
[1752069284674,0.53456881,109480.0,109470.0,0.06574293]
[1752069285837,0.18368176,109480.0,109470.0,0.06574293]
[1752069286039,0.53456881,109480.0,109470.0,0.06574293]
[1752069286239,0.18368176,109480.0,109470.0,0.06574293]
[1752069288553,0.18368176,109480.0,109470.0,0.24844138]
[1752069288792,0.18368176,109480.0,109470.0,0.34382804]
[1752069289039,0.32924176,109480.0,109470.0,0.38516279]
[1752069289246,0.32924176,109480.0,109470.0,0.40343416]
[1752069289451,0.32924176,109480.0,109470.0,0.41256848]
[1752069289695,0.32924176,109480.0,109470.0,0.40343398]
[1752069290121,0.32924176,109480.0,109470.0,0.3942994]
[1752069290788,0.32924176,109480.0,109470.0,0.4034339]
[1752069291003,0.32924176,109480.0,109470.0,0.40343398]
[1752069291405,0.32924176,109480.0,109470.0,0.38516473]
[1752069291816,0.32924176,109480.0,109470.0,0.3942994]
[1752069292019,0.32924176,109480.0,109470.0,0.41256848]
[1752069292239,0.32924176,109480.0,109470.0,0.40343365]
[1752069292240,0.18309541,109480.0,109470.0,0.40343365]
[1752069292446,0.18309541,109480.0,109470.0,0.41256807]
[1752069292691,0.36577717,109480.0,109470.0,0.41256807]
[1752069293143,0.36577717,109480.0,109470.0,0.38516457]
[1752069293617,0.35664359,109480.0,109470.0,0.37602998]
[1752069293923,0.35664359,109480.0,109470.0,0.38516473]
[1752069294272,0.35664359,109480.0,109470.0,0.3942994]
[1752069294885,0.35664359,109480.0,109470.0,0.40343398]
[1752069295102,0.35664359,109480.0,109470.0,0.3942994]
[1752069295548,0.17396183,109480.0,109470.0,0.41256848]
[1752069295697,0.35664359,109480.0,109470.0,0.40343398]
[1752069296126,0.17396183,109480.0,109470.0,0.41256848]
[1752069296362,0.16482775,109480.0,109470.0,0.41256807]
[1752069296488,0.16482775,109480.0,109470.0,0.41256765]
[1752069296688,0.01013333,109480.0,109470.0,0.7634547]
[1752069296906,0.001,109480.0,109470.0,0.72235959]
[1752069297641,0.001,109480.0,109470.0,1.16468357]
[1752069297992,0.001,109480.0,109470.0,1.19191334]
[1752069298971,0.001,109480.0,109470.0,0.49013924]
[1752069299373,0.001,109480.0,109470.0,0.98654629]
[1752069299668,0.01013333,109480.0,109470.0,1.04134354]
[1752069300021,0.02840058,109480.0,109470.0,1.04134354]
[1752069300217,0.03753441,109480.0,109470.0,0.50839891]
[1752069300431,0.22021692,109480.0,109470.0,0.5807514]
[1752069300646,0.22021692,109480.0,109470.0,0.50800438]
[1752069301284,0.02840108,109480.0,109470.0,0.29374546]
[1752069301491,0.037535,109480.0,109470.0,0.50776986]
[1752069301719,0.04666908,109480.0,109470.0,0.50776994]
[1752069301931,0.22021734,109480.0,109470.0,0.33484603]
[1752069302133,0.20194976,109480.0,109470.0,0.35316198]
[1752069302398,0.20194976,109480.0,109470.0,0.34402706]
[1752069302588,0.20194976,109480.0,109470.0,0.48950706]
[1752069302780,0.20194976,109480.0,109470.0,0.49864189]
[1752069302985,0.20194976,109480.0,109470.0,0.49864198]
[1752069303353,0.20194976,109480.0,109470.0,0.50777665]
[1752069303567,0.02840167,109480.0,109470.0,0.53807665]
[1752069303860,0.01926759,109480.0,109470.0,0.54721107]
[1752069304071,0.02840101,109480.0,109470.0,0.5563454]
[1752069304277,0.22021685,109480.0,109470.0,0.56817673]
[1752069304495,0.55283681,109480.0,109470.0,0.07944701]
[1752069304714,0.61633681,109480.0,109470.0,0.12054569]
[1752069304938,0.79587595,109480.0,109470.0,0.12054569]
[1752069305710,0.70777374,109480.0,109470.0,0.06819974]
[1752069306349,0.35688669,109480.0,109470.0,0.04109868]
[1752069306555,0.70777374,109480.0,109470.0,0.04109868]
[1752069307810,0.26544976,109480.0,109470.0,0.22379713]
[1752069308033,0.20194976,109480.0,109470.0,0.04109868]
[1752069308480,0.23254976,109480.0,109470.0,0.04109868]
[1752069309141,0.58343681,109480.0,109470.0,0.04109868]
[1752069310270,0.21010254,109470.0,109460.0,0.4506112]
[1752069310490,0.21923721,109470.0,109460.0,0.55071428]
[1752069310917,0.03653876,109470.0,109460.0,0.56898529]
[1752069311248,0.04080123,109520.0,109500.0,0.00913183]
[1752069311461,0.30917941,109530.0,109510.0,0.6227126]
[1752069311676,0.29092,109530.0,109520.0,0.59189383]
[1752069311908,0.29092,109530.0,109520.0,0.21361504]
[1752069311909,0.31830857,109530.0,109520.0,0.21361504]
[1752069312134,0.3183084,109530.0,109520.0,0.58918139]
[1752069312343,0.32743799,109530.0,109520.0,0.58918139]
[1752069312568,0.30931882,109530.0,109520.0,0.6165723]
[1752069312788,0.3184484,109530.0,109520.0,0.59831189]
[1752069312992,0.51017702,109530.0,109520.0,0.19816376]
[1752069313207,0.51017702,109530.0,109520.0,0.54905081]
[1752069313411,0.51017702,109530.0,109520.0,0.19003301]
[1752069313625,0.49191803,109530.0,109520.0,0.19003301]
[1752069313833,0.49191803,109530.0,109520.0,0.00741797]
[1752069314040,0.49191803,109530.0,109520.0,0.19003301]
[1752069315144,0.48278828,109530.0,109520.0,0.19003301]
[1752069315339,0.48278828,109530.0,109520.0,0.00741797]
[1752069315534,0.48278828,109530.0,109520.0,0.04852904]
[1752069317345,0.48278828,109530.0,109520.0,0.00741797]
[1752069317794,0.48278828,109530.0,109520.0,0.02445828]
[1752069319356,0.69776214,109530.0,109520.0,0.02445828]
[1752069319965,0.72946214,109530.0,109520.0,0.02445828]
[1752069320124,0.72946214,109530.0,109520.0,0.02445157]
[1752069322384,0.69776214,109530.0,109520.0,0.02445157]
[1752069324141,0.19181568,109480.0,109470.0,0.20940124]
[1752069324348,1.18046867,109480.0,109470.0,0.1]
[1752069324562,1.65154101,109480.0,109470.0,0.09085864]
[1752069324770,1.65154101,109480.0,109470.0,0.05886388]
[1752069324771,0.92135189,109480.0,109470.0,0.05886388]
[1752069324982,1.31390445,109480.0,109470.0,0.04972252]
[1752069325211,1.67899901,109480.0,109470.0,0.04058156]
[1752069325411,1.68199901,109480.0,109470.0,0.04058156]
[1752069325629,1.09714602,109480.0,109470.0,0.0314406]
[1752069325832,0.5318332,109470.0,109460.0,0.0004]
[1752069326043,1.11190162,109470.0,109460.0,0.0005397]
[1752069326664,1.07980162,109470.0,109460.0,0.0005397]
[1752069327097,0.99744084,109470.0,109460.0,0.0005397]
[1752069328189,1.01198169,109470.0,109460.0,0.0005397]
[1752069328393,0.68098713,109470.0,109460.0,0.0005397]
[1752069328599,1.07356766,109470.0,109460.0,0.0005397]
[1752069329037,1.10526766,109470.0,109460.0,0.0005397]
[1752069329230,1.19670459,109470.0,109460.0,0.0005397]
[1752069329428,0.79991003,109470.0,109460.0,0.0005397]
[1752069329629,0.76781003,109470.0,109460.0,0.0005397]
[1752069329838,1.13090459,109470.0,109460.0,0.0005397]
[1752069330041,1.13390459,109470.0,109460.0,0.0015397]
[1752069330253,1.13490459,109470.0,109460.0,0.0015397]
[1752069330659,0.66383225,109470.0,109460.0,0.0015397]
[1752069330870,1.02892681,109470.0,109460.0,0.0015397]
[1752069331094,0.66383225,109470.0,109460.0,0.0015397]
[1752069331296,0.5358332,109470.0,109460.0,0.0645397]
[1752069331506,0.5358332,109470.0,109460.0,0.0015397]
[1752069331955,0.62863244,109470.0,109460.0,0.0015397]
[1752069332309,0.993727,109470.0,109460.0,0.0015397]
[1752069332490,0.61957419,109470.0,109460.0,0.0015397]
[1752069332681,0.98466875,109470.0,109460.0,0.0015397]
[1752069333703,1.13086875,109470.0,109460.0,0.0015397]
[1752069334337,0.55694529,109460.0,109450.0,0.0311]
[1752069334976,0.55694529,109460.0,109450.0,0.0004]
[1752069335431,0.19186826,109450.0,109440.0,0.0056514]
[1752069335644,0.55696282,109450.0,109440.0,0.0056514]
[1752069336056,1.1489806,109450.0,109440.0,0.01988357]
[1752069336461,1.1764416,109450.0,109440.0,0.01073765]
[1752069336697,1.26787853,109450.0,109440.0,0.01173765]
[1752069336863,1.26787853,109450.0,109440.0,0.00159173]
[1752069337279,0.20102295,109440.0,109430.0,0.0004]
[1752069337485,0.71207751,109440.0,109430.0,0.0004]
[1752069338799,0.71407751,109440.0,109430.0,0.0014]
[1752069339019,0.80551444,109440.0,109430.0,0.0014]
[1752069339226,0.44041988,109440.0,109430.0,0.0014]
[1752069339399,0.80751444,109440.0,109430.0,0.0014]
[1752069339815,0.29645988,109440.0,109430.0,0.0014]
[1752069340013,0.35086295,109440.0,109430.0,0.0014]
[1752069341012,0.20502295,109440.0,109430.0,0.0014]
[1752069341423,0.71587751,109440.0,109430.0,0.0014]
[1752069341867,0.80731444,109440.0,109430.0,0.0014]
[1752069342076,0.89875137,109440.0,109430.0,0.0014]
[1752069342220,0.53365681,109440.0,109430.0,0.0014]
[1752069342436,0.89875137,109440.0,109430.0,0.0014]
[1752069343351,0.80731444,109440.0,109430.0,0.0014]
[1752069345775,0.44221988,109440.0,109430.0,0.0014]
[1752069345985,0.80731444,109440.0,109430.0,0.0014]
[1752069346204,1.28334392,109440.0,109430.0,0.0014]
[1752069347268,0.21021768,109410.0,109400.0,0.23519926]
[1752069347481,0.20107825,109410.0,109400.0,0.32602204]
[1752069347694,0.80316974,109410.0,109400.0,0.10990669]
[1752069347936,0.80316974,109410.0,109400.0,0.10075821]
[1752069347937,1.14316974,109410.0,109400.0,0.10075821]
[1752069348173,1.14316974,109410.0,109370.0,0.0331164]
[1752069348174,0.20113307,109380.0,109370.0,0.0331164]
[1752069348397,0.85734763,109380.0,109370.0,0.0056514]
[1752069348615,0.85748743,109380.0,109370.0,0.0056514]
[1752069349060,0.50149292,109380.0,109370.0,0.0056514]
[1752069349283,0.86658748,109380.0,109370.0,0.01202601]
[1752069349518,0.95601829,109380.0,109370.0,0.01302601]
[1752069349731,0.61869578,109380.0,109370.0,0.01202601]
[1752069349939,0.97469029,109380.0,109370.0,0.01202601]
[1752069350155,0.52016492,109380.0,109370.0,0.01202601]
[1752069350366,0.88525948,109380.0,109370.0,0.01202601]
[1752069350787,0.50153522,109380.0,109370.0,0.20403478]
[1752069351002,0.4923932,109380.0,109370.0,0.22789151]
[1752069351231,0.5555932,109380.0,109370.0,0.00287327]
[1752069351454,0.2157107,109360.0,109350.0,0.5]
[1752069351678,0.30714763,109360.0,109350.0,0.5]
[1752069351871,0.72404371,109360.0,109350.0,0.5]
[1752069352090,0.41152571,109360.0,109350.0,0.70118874]
[1752069352303,0.13720656,109360.0,109350.0,0.76162249]
[1752069352519,0.02743107,109360.0,109350.0,0.76162249]
[1752069352730,0.02743107,109360.0,109350.0,0.79472249]
[1752069352986,0.01828713,109360.0,109350.0,0.79472249]
[1752069353184,0.00914344,109360.0,109350.0,0.79472249]
[1752069353422,0.01828704,109360.0,109350.0,0.79472249]
[1752069353599,0.00914344,109360.0,109350.0,0.79472249]
[1752069353806,0.00914294,109370.0,109360.0,0.23146985]
[1752069354028,0.21029431,109370.0,109360.0,0.32386]
[1752069354226,0.20115163,109370.0,109360.0,0.51588633]
[1752069354454,0.20115163,109370.0,109360.0,0.32386]
[1752069354639,0.19200869,109370.0,109360.0,0.29356]
[1752069355061,0.1828655,109370.0,109350.0,0.71799697]
[1752069355266,0.19202633,109360.0,109350.0,0.502]
[1752069355478,0.19202633,109360.0,109350.0,0.79548]
[1752069355715,0.28346326,109360.0,109350.0,0.79548]
[1752069355925,0.37490019,109360.0,109350.0,0.79348]
[1752069356350,0.44802967,109360.0,109350.0,0.79348]
[1752069357195,0.82766508,109360.0,109350.0,0.79348]
[1752069357816,0.46257052,109360.0,109350.0,0.79348]
[1752069358053,0.82866508,109360.0,109350.0,0.79348]
[1752069358238,0.28446326,109360.0,109350.0,0.97637894]
[1752069358452,0.28446326,109360.0,109350.0,0.79348]
[1752069358665,0.64955782,109360.0,109350.0,0.79348]
[1752069358878,0.28446326,109360.0,109350.0,0.79348]
[1752069359773,0.32108912,109360.0,109350.0,0.97637894]
[1752069360199,0.41252605,109360.0,109350.0,0.97637894]
[1752069360417,0.41252605,109360.0,109350.0,0.98552388]
[1752069360646,0.10158053,109360.0,109350.0,0.99466824]
[1752069360843,0.10158053,109360.0,109350.0,1.0672126]
[1752069360844,0.01014335,109360.0,109350.0,1.0672126]
[1752069361078,0.0282489,109360.0,109350.0,1.05806824]
[1752069361275,0.03739276,109360.0,109350.0,1.04892372]
[1752069361501,0.00996161,109360.0,109350.0,1.06821269]
[1752069361638,0.01910521,109360.0,109350.0,1.05906833]
[1752069361843,0.03739284,109360.0,109350.0,1.05906833]
[1752069362047,0.03739284,109360.0,109350.0,1.04992372]
[1752069362251,0.03739284,109360.0,109350.0,1.06821293]
[1752069362480,0.01910521,109360.0,109350.0,1.07735738]
[1752069362677,0.0282489,109360.0,109350.0,1.06821302]
[1752069362999,0.0282489,109360.0,109350.0,1.0865019]
[1752069363233,0.0282489,109360.0,109350.0,1.09287175]
[1752069363444,0.0099617,109360.0,109350.0,1.08372739]
[1752069363653,0.03739318,109360.0,109350.0,1.06543826]
[1752069363863,0.2202754,109360.0,109350.0,1.02349357]